[Event "GER-ch Youth-U14 2022"]
[Site "Willingen"]
[Date "2022.06.10"]
[Round "8.5"]
[White "Klaska, Philipp Leon"]
[Black "Udelnov, Valentin"]
[Result "1-0"]
[ECO "D01"]
[WhiteElo "1946"]
[BlackElo "1901"]
[Annotator "TA"]
[PlyCount "107"]
[EventDate "2022.06.05"]
[EventType "swiss"]
[EventRounds "9"]
[EventCountry "GER"]
[SourceTitle "playchess.com"]
[Source "ChessBase"]
[SourceQuality "1"]
[TimeControl "40/4500+30:900+30"]

{[%evp 9,107,13,27,30,11,13,22,14,96,54,59,67,101,85,89,88,83,89,159,135,149,87,89,78,104,81,166,161,129,23,35,38,39,16,38,-20,67,47,51,72,49,5,146,137,148,132,162,166,167,127,342,341,332,337,334,330,298,322,412,398,457,457,539,536,676,632,668,652,942,921,901,889,1846,1712,1418,1486,2287,891,2057,2056,12810,11755,29981,29982,29982,29983,29980,2648,29971,29970,29974,29971,29986,29987,29987,29988,29995,29996,29996,29995]} 1. d4 {[%emt 0:00:00]} Nf6 {[%emt 0:00:00]} 2. Nc3 {[%emt 0:00:00]} d5 {[%emt 0:00:00]} 3. Bg5 {[%emt 0:00:00]} Ne4 {[%emt 0:00:00]} 4. Nxe4 {[%emt 0:00:00]} dxe4 {[%emt 0:00:00]} 5. Qd2 {[%emt 0:00:00]} h6 {[%emt 0:00:00]} 6. Bh4 {[%emt 0:00:00] D01: Veresov Opening.} g5 {[%emt 0:00:00]} 7. Bg3 {[%emt 0:00:00]} Bg7 {[%emt 0:00:00]} 8. O-O-O {[%emt 0:00:00] The position is equal.} c6 {[%emt 0:12:25]} (8... Qd5 $11 {remains equal.}) 9. h4 {[%emt 0:02:09] [#]} Qd5 $146 {[%emt 0:03:55]} ({Predecessor:} 9... e6 10. f3 Qd5 11. Kb1 e3 12. Qxe3 c5 13. Qc1 cxd4 14. e4 Qa5 15. hxg5 hxg5 16. Rxh8+ Bxh8 {1-0 (26) Tofil,B (2148)-Wojciechowski,P (2228) Rewal 2007}) 10. b3 {[%emt 0:10:01]} b5 {[%emt 0:02:10]} 11. f3 {[%emt 0:11:56]} g4 {[%emt 0:08:40]} 12. fxe4 {[%emt 0:11:57]} Qxe4 {[%emt 0:00:13][%cal Oc6c5]} 13. e3 {[%emt 0:01:30]} Bf5 {[%emt 0:03:13]} (13... Qh7 $142) 14. Bd3 {[%emt 0:05:14]} Qd5 {[%emt 0:00:49]} 15. Bxf5 {[%emt 0:02:55]} (15. Be5 $142 Bxd3 16. Bxg7) 15... Qxf5 $16 {[%emt 0:00:10]} 16. Ne2 {[%emt 0:00:29]} Nd7 {[%emt 0:02:01]} 17. Rhf1 {[%emt 0:01:39][%cal Bh1f1,Bf1f4,Bf4f5,Bf5e5,Be5c5][%mdl 32]} Qe6 {[%emt 0:01:20]} (17... Qg6 $16 {was necessary.}) 18. Nf4 $1 $18 {[%emt 0:08:32]} Qe4 {[%emt 0:02:11]} 19. Nd3 {[%emt 0:05:29]} (19. Nh5 $16 O-O 20. Qe2) 19... O-O $11 {[%emt 0:04:52]} 20. Rf4 {[%emt 0:04:18]} Qg6 {[%emt 0:01:45]} 21. Qe2 {[%emt 0:02:44]} h5 {[%emt 0:01:02]} 22. Rdf1 {[%emt 0:01:59]} ({White should play} 22. Rff1 $14) 22... Bh6 {[%emt 0:03:54]} (22... f5 $11) 23. Rf5 $14 {[%emt 0:02:26]} e6 {[%emt 0:01:46]} 24. Ne5 $1 {[%emt 0:00:50]} Nxe5 {[%emt 0:00:07]} 25. Rxe5 {[%emt 0:00:55] With the idea Bf4.} (25. Rf6 $5 {[%cal Rf6g6]}) 25... Rfe8 {[%emt 0:03:19]} (25... Rad8 $11 {keeps the balance.}) 26. Bf4 {[%emt 0:02:00]} f6 {[%emt 0:03:27]} 27. Rc5 {[%emt 0:01:12]} Rac8 {[%emt 0:01:17] [#]} 28. Bxh6 {[%emt 0:01:06]} Qxh6 {[%emt 0:00:12]} 29. Rf4 {[%emt 0:01:36][%cal Oc5h5] Threatens to win with Rxh5!} Qg6 {[%emt 0:02:12] [#] Black cannot hold the game after this.} (29... f5 $16) 30. Rxh5 $3 $18 {[%emt 0:02:32][%mdl 512]} Qxh5 {[%emt 0:06:10]} 31. Rxg4+ {[%emt 0:00:11]} Kf7 {[%emt 0:00:19] [#] White must now prevent ...Rh8.} 32. Rg7+ $3 {[%emt 0:00:07][%mdl 576] Skewer, Discovered Attack} Kxg7 {[%emt 0:00:06]} 33. Qxh5 {[%emt 0:00:05][%mdl 4096] Endgame KQ-KRR} Rh8 {[%emt 0:00:23]} 34. Qc5 {[%emt 0:00:45]} Rc7 {[%emt 0:03:30]} 35. Qd6 {[%emt 0:00:56][%csl LRc7,LRe6]} Rhc8 {[%emt 0:02:13]} 36. Qxe6 {[%emt 0:00:31]} a5 {[%emt 0:00:42]} 37. g4 {[%emt 0:01:00]} a4 {[%emt 0:00:49]} 38. h5 {[%emt 0:00:28]} axb3 {[%emt 0:00:28]} 39. axb3 {[%emt 0:00:10]} Rf8 {[%emt 0:00:31]} 40. e4 {[%emt 0:02:58]} Rff7 {[%emt 0:01:19]} 41. e5 {[%emt 0:16:35] aiming for exf6+.} fxe5 {[%emt 0:15:37]} 42. dxe5 {[%emt 0:00:12][%cal Bd4e5,Be5e6][%mdl 32] And now g5 would win.} c5 {[%emt 0:03:08]} 43. Qg6+ {[%emt 0:00:00]} (43. g5 $142) 43... Kf8 {[%emt 0:00:00]} 44. Qd6+ {[%emt 0:00:00]} Kg7 {[%emt 0:00:00]} 45. e6 {[%emt 0:00:00]} Rf1+ {[%emt 0:00:00]} 46. Kb2 {[%emt 0:00:00]} Ra7 {[%emt 0:00:00]} 47. Qxc5 {[%emt 0:00:00]} Raa1 {[%emt 0:00:00]} 48. Qxb5 {[%emt 0:00:00]} (48. Qg5+ $142 Kh7 49. Qg6+ Kh8 50. e7 Rab1+ 51. Kc3 Rbe1 52. e8=Q+ Rxe8 53. Qxe8+ Kh7 54. Qg6+ Kh8 55. Qe8+ Kg7 56. g5) 48... Rab1+ {[%emt 0:00:00]} 49. Ka3 {[%emt 0:00:00] White mates.} Ra1+ {[%emt 0:00:00]} 50. Kb4 {[%emt 0:00:00]} Rae1 {[%emt 0:00:00]} 51. g5 {[%emt 0:00:00]} Re4+ {[%emt 0:00:00]} 52. Ka3 {[%emt 0:00:00]} Rfe1 {[%emt 0:00:00]} 53. Qd7+ {[%emt 0:00:00]} Kh8 {[%emt 0:00:00]} 54. h6 {[%emt 0:00:00] Weighted Error Value: White=0.18 (very precise) /Black=0.48} 1-0

[Event "GER-ch Youth-U14 2022"]
[Site "Willingen"]
[Date "2022.06.10"]
[Round "8.6"]
[White "Campora, Daniel H."]
[Black "Kocharin, Timur"]
[Result "1/2-1/2"]
[ECO "E20"]
[WhiteElo "2397"]
[BlackElo "1867"]
[Annotator "TA"]
[PlyCount "117"]
[EventDate "2022.06.05"]
[EventType "swiss"]
[EventRounds "9"]
[EventCountry "GER"]
[SourceTitle "playchess.com"]
[Source "ChessBase"]
[SourceQuality "1"]
[TimeControl "40/4500+30:900+30"]

{[%evp 9,117,-27,10,-14,15,16,41,-11,0,-2,-8,-28,-32,-66,-78,-67,-68,-84,-81,-108,-95,-93,-97,-88,-66,-146,-45,-59,-16,-108,-27,-68,-10,-10,-10,-26,-10,-10,-10,-5,0,0,0,-9,-16,-51,-31,-50,-38,-91,-4,-10,0,0,0,0,0,0,0,0,0,0,0,0,13,27,40,41,34,0,0,0,0,-30,-31,-31,-32,-31,0,0,0,-181,-183,-330,-325,-366,-137,-369,-356,-352,-341,-350,-331,-266,0,0,0,-43,0,0,0,0,0,0,0,0,0,0,0,0]} 1. d4 {[%emt 0:00:00]} Nf6 {[%emt 0:00:00]} 2. c4 {[%emt 0:00:00]} e6 {[%emt 0:00:00]} 3. Nc3 {[%emt 0:00:00]} Bb4 {[%emt 0:00:00]} 4. f3 {[%emt 0:00:00]} Nc6 {[%emt 0:00:00]} 5. Bg5 {[%emt 0:00:00]} d6 {[%emt 0:00:00] [#]} 6. e3 $146 {[%emt 0:00:00] E20: Nimzo-Indian: 4 g3 and 4 f3.} ({Predecessor:} 6. e4 e5 7. a3 Bxc3+ 8. bxc3 a6 9. Be3 Nd7 10. f4 O-O 11. f5 exd4 12. Bf4 dxc3 13. Nf3 Re8 14. Bd3 Nc5 15. O-O Nxe4 16. Qc1 Qf6 17. g4 Nd4 18. Bxe4 Ne2+ {0-1 (18) Mohamad,J (2226)-Riff,V (2110) Condom 2003}) 6... h6 {[%emt 0:03:09]} (6... Bxc3+ $5 7. bxc3 h6 8. Bxf6 Qxf6 $11) 7. Bh4 {[%emt 0:00:00]} e5 {[%emt 0:04:59]} 8. a3 {[%emt 0:05:03]} (8. Nge2 $14) 8... Bxc3+ $11 {[%emt 0:00:18]} 9. bxc3 {[%emt 0:00:04]} Qe7 {[%emt 0:03:49]} 10. e4 {[%emt 0:31:02]} b6 {[%emt 0:07:22]} 11. c5 {[%emt 0:06:20]} dxc5 {[%emt 0:09:25][%cal Re5d4]} 12. Bb5 {[%emt 0:05:05]} Bd7 {[%emt 0:03:50][%cal Re5d4]} 13. d5 {[%emt 0:03:45]} Na5 {[%emt 0:01:53]} 14. Bxd7+ {[%emt 0:04:03]} Qxd7 {[%emt 0:04:04]} ({But not} 14... Kxd7 $6 15. Ne2 $11) 15. Bxf6 {[%emt 0:02:05]} gxf6 {[%emt 0:02:03]} 16. Ne2 {[%emt 0:01:04]} Nb7 {[%emt 0:05:08]} 17. g4 {[%emt 0:03:53]} (17. Ng3 $15) 17... Nd6 {[%emt 0:10:31]} (17... h5 $17 18. gxh5 f5 19. exf5 Rxh5) 18. Ng3 $1 $15 {[%emt 0:06:16]} Qb5 {[%emt 0:04:44]} 19. Qd2 {[%emt 0:04:39]} (19. Qc2 $11) 19... Nc4 {[%emt 0:06:48]} (19... O-O-O $17) 20. Qe2 {[%emt 0:04:28]} Qb2 {[%emt 0:00:51]} (20... Qb3 $15 21. Qd3 Nxa3) 21. Qxb2 $11 {[%emt 0:00:18]} Nxb2 {[%emt 0:00:03]} 22. Kd2 {[%emt 0:00:40]} Nc4+ {[%emt 0:00:08]} 23. Kd3 {[%emt 0:00:04]} Nd6 {[%emt 0:00:03]} 24. c4 {[%emt 0:00:04]} Rg8 {[%emt 0:01:37]} 25. a4 {[%emt 0:01:36]} Kd7 {[%emt 0:02:06]} 26. Rhg1 {[%emt 0:00:42]} a6 {[%emt 0:00:34]} 27. Ne2 {[%emt 0:00:26]} Rae8 {[%emt 0:00:31]} 28. Rg3 {[%emt 0:00:23]} Rb8 {[%emt 0:02:45]} 29. Rh3 {[%emt 0:01:12] [#]} (29. Nc3 $15) 29... Rg6 {[%emt 0:00:45]} (29... b5 $1 $17 {[%cal Rb5c4]} 30. cxb5 axb5) 30. Nc3 {[%emt 0:00:58]} Kc8 {[%emt 0:04:04]} 31. Rb1 {[%emt 0:00:38]} Kb7 {[%emt 0:01:20]} 32. Rh5 {[%emt 0:00:14]} Kc8 {[%emt 0:00:43]} 33. Rg1 {[%emt 0:01:27]} Kd7 {[%emt 0:01:50]} 34. Rg3 {[%emt 0:00:04]} Rh8 {[%emt 0:01:25]} 35. Rgh3 {[%emt 0:00:10]} Nc8 {[%emt 0:00:45]} 36. Nd1 {[%emt 0:00:26]} Ne7 {[%emt 0:00:17]} 37. Ne3 {[%emt 0:00:16]} c6 $1 {[%emt 0:01:05]} 38. Nf5 {[%emt 0:01:48]} cxd5 {[%emt 0:00:18]} 39. exd5 {[%emt 0:01:00][%cal Rh5h6]} Nxf5 {[%emt 0:00:21]} 40. gxf5 {[%emt 0:02:14]} Rg5 {[%emt 0:02:11]} 41. Rxg5 {[%emt 0:16:18]} fxg5 {[%emt 0:15:03][%mdl 4096] Endgame KR-KR} 42. f6 $1 {[%emt 0:00:39]} Kd6 {[%emt 0:03:18][%cal Ob6b5] White must now prevent ...b5!} 43. Ke4 $1 {[%emt 0:00:00]} Rh7 {[%emt 0:00:00][%cal Ob6b5]} 44. Rh5 {[%emt 0:00:00]} Rh8 {[%emt 0:00:00][%cal Ob6b5]} 45. h4 $2 {[%emt 0:00:00]} (45. Rh3 $11) 45... gxh4 $19 {[%emt 0:00:00][%cal Ob6b5]} 46. Rxh4 {[%emt 0:00:00]} (46. Rxe5 {is the only way for White.} Rb8 47. Rh5) 46... h5 {[%emt 0:00:00]} 47. Kf5 {[%emt 0:00:00]} Rh6 $2 {[%emt 0:00:00]} (47... b5 $1 $19 {[%cal Rb5c4]} 48. cxb5 axb5 49. axb5 Kxd5) 48. Rh1 $2 {[%emt 0:00:00]} (48. Kg5 $17 Rh8 49. Rh1) 48... h4 {[%emt 0:00:00] And now ...h3 would win.} 49. Rb1 {[%emt 0:00:00]} h3 {[%emt 0:00:00]} 50. Rxb6+ {[%emt 0:00:00]} Kc7 {[%emt 0:00:00]} 51. Rb1 {[%emt 0:00:00] [#]} h2 $2 {[%emt 0:00:00]} ({Black should play} 51... Rh4 $1 $19 {[%cal Rh4c4]} 52. Rh1 Kd6) 52. Rh1 $15 {[%emt 0:00:00]} Kd6 {[%emt 0:00:00]} 53. a5 $1 {[%emt 0:00:00]} Rh8 {[%emt 0:00:00]} (53... Rh4 $5 {[%cal Rh4c4]} 54. Kg5 Rxc4 55. Rxh2 Rb4 $15) 54. Kg4 {[%emt 0:00:00] Prevents Rh4+. The position is equal.} Rh6 {[%emt 0:00:00]} 55. Kg3 {[%emt 0:00:00]} Rxf6 {[%emt 0:00:00]} 56. Rxh2 {[%emt 0:00:00] Rh4 is the strong threat.} Rf4 {[%emt 0:00:00]} 57. Rh6+ {[%emt 0:00:00]} f6 {[%emt 0:00:00]} 58. Rh4 {[%emt 0:00:00]} Rd4 {[%emt 0:00:00]} 59. Rh6 {[%emt 0:00:00] Black had all chances to win.  Weighted Error Value: White=0.29 (precise) /Black=0.23 (precise)} 1/2-1/2

[Event "GER-ch Youth-U14 2022"]
[Site "Willingen"]
[Date "2022.06.10"]
[Round "8.7"]
[White "Torosyan, Bagrat"]
[Black "Haubold, Christian Lucas"]
[Result "1/2-1/2"]
[ECO "C50"]
[WhiteElo "1683"]
[BlackElo "1921"]
[Annotator "TA"]
[PlyCount "82"]
[EventDate "2022.06.05"]
[EventType "swiss"]
[EventRounds "9"]
[EventCountry "GER"]
[SourceTitle "playchess.com"]
[Source "ChessBase"]
[SourceQuality "1"]
[TimeControl "40/4500+30:900+30"]

{[%evp 14,82,11,10,19,11,47,50,79,31,31,23,41,25,30,13,72,34,54,43,53,41,43,31,208,178,199,178,261,259,240,119,116,116,160,96,100,102,95,89,96,91,204,62,80,37,37,37,37,0,-6,-18,0,0,0,0,0,0,0,0,0,0,0,0,0,0,0,0,0,0,0]} 1. e4 {[%emt 0:00:00]} e5 {[%emt 0:00:00]} 2. Nf3 {[%emt 0:00:00]} Nc6 {[%emt 0:00:00]} 3. Bc4 {[%emt 0:00:00]} Nf6 {[%emt 0:00:00]} 4. d3 {[%emt 0:00:00]} Bc5 {[%emt 0:00:00]} 5. c3 {[%emt 0:00:00]} d6 {[%emt 0:00:00]} 6. h3 {[%emt 0:00:00]} a6 {[%emt 0:00:00]} 7. Bb3 {[%emt 0:00:00]} Ba7 {[%emt 0:00:00]} 8. Nbd2 {[%emt 0:00:00]} h6 {[%emt 0:00:00] C54: Giuoco Piano: 4 c3 Nf6, main lines with 5 d4 and 5 d3.} 9. Nf1 {[%emt 0:00:00]} g5 {[%emt 0:00:00]} 10. Be3 {[%emt 0:00:00]} Qe7 {[%emt 0:03:51] White is slightly better.} 11. Bxa7 {[%emt 0:00:00]} (11. Ba4 $16) 11... Nxa7 $14 {[%emt 0:00:49]} 12. Ne3 {[%emt 0:00:00]} Be6 {[%emt 0:02:03] [#]} 13. Qc2 $146 {[%emt 0:00:00]} ({Predecessor:} 13. Ba4+ Bd7 14. Bxd7+ Qxd7 15. c4 Nc6 16. Nc2 Nh7 17. g4 Nf8 18. Ne3 Ne6 19. Nd5 {0-1 (44) Bui,B (1656)-Roehr,O (1453) Willingen 2015}) 13... O-O-O {[%emt 0:01:02]} 14. O-O-O {[%emt 0:00:00]} d5 {[%emt 0:08:55]} (14... Kb8 $11 {keeps the balance.}) 15. Nxe5 {[%emt 0:19:51]} dxe4 {[%emt 0:00:24]} 16. d4 {[%emt 0:00:21]} c5 $1 {[%emt 0:10:00]} 17. Bxe6+ {[%emt 0:01:17]} (17. h4 {looks sharper.} gxh4 18. Kb1 cxd4 19. cxd4+ Kb8 20. Bxe6 Qxe6 21. Qb3) 17... Qxe6 {[%emt 0:00:18]} 18. Qb3 {[%emt 0:06:48]} Nd5 $2 {[%emt 0:19:00] [#]} ({But not} 18... Qxb3 19. axb3 cxd4 20. Nf5 (20. Rxd4 Rxd4 21. cxd4 Nc6 $14) (20. cxd4 Rhf8 $14)) (18... cxd4 $1 $14 19. cxd4 (19. Qxe6+ fxe6 20. Rxd4 Rxd4 $11) 19... Qxb3 20. axb3 Rhf8) 19. Nxf7 $1 {[%emt 0:03:47][%mdl 512]} Qxf7 {[%emt 0:00:07]} 20. dxc5 {[%emt 0:00:09][%cal Re3d5]} Qxf2 {[%emt 0:00:50]} (20... Qf4 $142) 21. Nxd5 $18 {[%emt 0:00:11]} Qxc5 {[%emt 0:02:24]} 22. Rhe1 {[%emt 0:16:13]} (22. Nb6+ $1 $18 {is the precise move to win.} Kc7 23. Nd7 $1) 22... Nc6 $16 {[%emt 0:13:55]} 23. Rxe4 {[%emt 0:17:35]} Na5 {[%emt 0:01:01] [#]} 24. Ne7+ {[%emt 0:01:00]} (24. Qb6 $142 $1 Qxb6 25. Nxb6+ Kc7 26. Nd5+ Kb8 27. Ne7) 24... Qxe7 {[%emt 0:10:23]} 25. Rxe7 {[%emt 0:00:08]} Nxb3+ {[%emt 0:00:03]} 26. axb3 {[%emt 0:00:08]} Rhf8 {[%emt 0:02:13]} 27. Rxd8+ {[%emt 0:00:56]} Kxd8 {[%emt 0:00:57][%mdl 4096] Endgame KR-KR} (27... Rxd8 $16 {was worth a try.} 28. b4 Rd3) 28. Re6 {[%emt 0:01:13]} ({White must play} 28. Rxb7 $18 {Hoping for Rb8+.} Rf1+ 29. Kc2) 28... Rf1+ {[%emt 0:01:13]} 29. Kc2 {[%emt 0:00:05]} Rf2+ {[%emt 0:00:06]} 30. Kb1 {[%emt 0:00:06] aiming for g4.} h5 {[%emt 0:01:20]} 31. Re5 {[%emt 0:02:30]} Rxg2 {[%emt 0:00:18] The position is equal.} 32. h4 {[%emt 0:00:12]} Rg4 {[%emt 0:05:29]} ({Of course not} 32... gxh4 $6 33. Rxh5 Rh2 34. Rh7 $15) 33. hxg5 {[%emt 0:01:07]} h4 {[%emt 0:00:07] White must now prevent ...h3.} 34. g6 {[%emt 0:01:04]} Rxg6 {[%emt 0:00:42] ...Rh6 is the strong threat.} 35. Rh5 {[%emt 0:00:07] Against Rh6} Rg4 {[%emt 0:00:05]} 36. Rh7 {[%emt 0:00:38]} Kc8 {[%emt 0:00:56]} 37. Ka2 {[%emt 0:00:19]} Kb8 {[%emt 0:02:18]} 38. c4 {[%emt 0:01:23]} Ka7 {[%emt 0:01:23]} 39. Ka3 {[%emt 0:00:50]} Kb6 {[%emt 0:01:26]} 40. Rh5 {[%emt 0:00:43]} Ka7 {[%emt 0:01:02]} 41. Kb4 {[%emt 0:17:07]} Kb6 {Black defended with fortune.  Weighted Error Value: White=0.25 (precise) /Black=0.26 (precise)} 1/2-1/2

[Event "GER-ch Youth-U14 2022"]
[Site "Willingen"]
[Date "2022.06.10"]
[Round "8.8"]
[White "Krüger, Arthur"]
[Black "Kempe, Caius Emilian"]
[Result "1-0"]
[ECO "C12"]
[WhiteElo "1988"]
[BlackElo "1973"]
[Annotator "TA"]
[PlyCount "91"]
[EventDate "2022.06.05"]
[EventType "swiss"]
[EventRounds "9"]
[EventCountry "GER"]
[SourceTitle "playchess.com"]
[Source "ChessBase"]
[SourceQuality "1"]
[TimeControl "40/4500+30:900+30"]

{[%evp 14,91,10,0,22,-28,-29,-23,-17,-29,-29,-29,-23,-43,-46,-25,-18,-39,0,0,0,16,78,91,64,64,131,127,236,231,278,264,263,227,324,327,446,452,639,-58,-54,-53,-52,-61,0,0,0,-81,-50,-58,-57,-62,0,-55,134,132,542,534,522,521,524,515,514,505,947,852,921,967,1408,1185,958,943,929,722,29989,29990,29990,29991,29991,29992]} 1. e4 {[%emt 0:00:00]} e6 {[%emt 0:00:00]} 2. d4 {[%emt 0:00:00]} d5 {[%emt 0:00:00]} 3. Nc3 {[%emt 0:00:00]} Nf6 {[%emt 0:00:00]} 4. Bg5 {[%emt 0:00:00]} Bb4 {[%emt 0:00:00]} 5. e5 {[%emt 0:00:00]} h6 {[%emt 0:00:00]} 6. Bd2 {[%emt 0:00:00]} Bxc3 {[%emt 0:00:00]} 7. bxc3 {[%emt 0:00:00]} Ne4 {[%emt 0:00:00]} 8. Bc1 {[%emt 0:00:00]} c5 {[%emt 0:04:35] C12: French: Classical System: McCutcheon Variation.} 9. Bd3 {[%emt 0:00:23]} (9. Ne2 $142 $1) 9... Nxc3 $11 {[%emt 0:07:33]} 10. Qg4 {[%emt 0:00:52]} Kf8 {[%emt 0:11:14] Black has an edge.} 11. Bd2 {[%emt 0:16:42]} Ne4 {[%emt 0:07:39]} 12. Bxe4 {[%emt 0:01:07]} dxe4 {[%emt 0:00:01] [#]} 13. dxc5 $146 {[%emt 0:01:12]} ({Predecessor:} 13. Ne2 cxd4 14. Qxe4 Nc6 15. Nf4 Qc7 16. Nd3 b6 17. O-O Bb7 18. Rfe1 Rd8 19. Qh4 {0-1 (43) Blazkova,P (2227)-Zier,O (2052) Karlovy Vary 2009}) 13... Qd4 {[%emt 0:01:14]} 14. Rd1 {[%emt 0:01:06]} Nc6 {[%emt 0:00:38]} 15. Ne2 {[%emt 0:05:08]} Qxe5 {[%emt 0:06:22]} (15... Qxc5 $15 16. Qxe4 Qxe5) 16. Bc3 {[%emt 0:07:41]} Qg5 {[%emt 0:00:12]} 17. Qxe4 {[%emt 0:00:29]} f6 {[%emt 0:12:13]} (17... Kg8 $11) 18. O-O $16 {[%emt 0:13:44]} Kf7 {[%emt 0:04:08]} 19. Qc4 $36 {[%emt 0:09:48][%mdl 2048] White has some pressure. White is more active.} Re8 {[%emt 0:09:22]} (19... Qg6 $14) 20. f4 {[%emt 0:03:43]} Qf5 {[%emt 0:02:03] [#]} (20... Qg4 $16 {was necessary.}) 21. Ng3 $1 $18 {[%emt 0:01:24]} Qxc2 {[%emt 0:07:04]} 22. Ne4 {[%emt 0:01:33]} Rd8 {[%emt 0:04:37]} 23. Nd6+ {[%emt 0:03:40]} Kg8 {[%emt 0:01:14]} (23... Kf8 $142 24. Rfe1 Rxd6 25. Rxd6 (25. cxd6 Bd7 $16) 25... Na5) 24. Rd2 {[%emt 0:01:07]} Qg6 {[%emt 0:00:13]} 25. f5 $1 {[%emt 0:01:01]} Qg5 {[%emt 0:00:03]} (25... Qh5 $142 26. fxe6 Kh7 27. Bxf6 Rg8) 26. fxe6 $2 {[%emt 0:00:51]} (26. Rd3 $18) 26... Qe3+ $15 {[%emt 0:00:12]} 27. Rff2 {[%emt 0:03:26]} Bxe6 {[%emt 0:00:52]} 28. Qe2 {[%emt 0:00:48]} Qxc3 {[%emt 0:01:27]} (28... Qxe2 $1 $15 29. Rfxe2 Bc8) 29. Qxe6+ $11 {[%emt 0:00:08]} Kh7 {[%emt 0:00:03] Threatens to win with ...Qc1+.} 30. Rc2 {[%emt 0:04:27] Inhibits Qc1+.} (30. Qf5+ $11 {remains equal.} Kg8 31. Qd5+ Kh7 32. Qf5+ Kg8 33. Qd5+ Kh7 34. Qf5+) 30... Qa1+ {[%emt 0:00:30]} 31. Rf1 {[%emt 0:00:04]} Qd4+ {[%emt 0:00:08]} 32. Kh1 $1 {[%emt 0:00:49]} Qd3 {[%emt 0:02:02]} (32... Ne5 $15 33. Nxb7 Qe4 34. Nxd8 Qxc2) 33. Rcc1 {[%emt 0:00:34]} ({White should play} 33. Rcf2 $1 $11) 33... b6 $2 {[%emt 0:02:10]} (33... Ne5 $1 $15 {keeps the upper hand.}) 34. Rfd1 $16 {[%emt 0:02:14]} Qa3 {[%emt 0:01:28][%mdl 8192] A mistake that costs the game.} (34... Nd4 $2 35. Qg4 (35. Rxd3 Nxe6 36. c6 Nc7 $11) 35... Qe3 36. Qxd4) (34... Qg6 $16 {is more resistant.}) 35. Qe4+ $18 {[%emt 0:00:36]} Kg8 {[%emt 0:00:40]} 36. Qxc6 {[%emt 0:00:21]} bxc5 {[%emt 0:00:19]} 37. Qd5+ {[%emt 0:00:57]} Kh7 {[%emt 0:00:06]} 38. Rxc5 {[%emt 0:00:41]} Rab8 {[%emt 0:00:27]} (38... Qe3 $142 39. Qf5+ Kg8) 39. Qe4+ {[%emt 0:01:45]} Kg8 {[%emt 0:00:12]} 40. Rcd5 {[%emt 0:00:45]} Qxa2 {[%emt 0:00:35]} 41. Qe6+ {[%emt 0:16:05]} Kh7 {[%emt 0:15:02]} 42. Qf5+ {[%emt 0:01:33]} Kg8 {[%emt 0:00:01]} 43. Qg6 {[%emt 0:01:41][%cal Od6f5] Threatening mate with Nf5!} Rd7 {[%emt 0:03:03] [#]} 44. Ne8 $1 {[%emt 0:00:00][%cal Bd6e8,Be8g7,Bg7e6][%mdl 32] White mates.} Rf7 {[%emt 0:00:00] [#]} 45. Nxg7 $1 {[%emt 0:00:00][%mdl 512]} Qxd5 {[%emt 0:00:00]} 46. Ne6+ {[%emt 0:00:00] Weighted Error Value: White=0.24 (precise) /Black=0.75} 1-0

[Event "GER-ch Youth-U14 2022"]
[Site "Willingen"]
[Date "2022.06.10"]
[Round "8.9"]
[White "Mader, Fabian"]
[Black "Sommer, Justus"]
[Result "0-1"]
[ECO "C54"]
[WhiteElo "1652"]
[BlackElo "1868"]
[Annotator "NA RC COMBH"]
[PlyCount "78"]
[EventDate "2022.06.05"]
[EventType "swiss"]
[EventRounds "9"]
[EventCountry "GER"]
[SourceTitle "playchess.com"]
[Source "ChessBase"]
[SourceQuality "1"]
[TimeControl "40/4500+30:900+30"]

1. e4 {[%emt 0:00:00]} e5 {[%emt 0:00:00]} 2. Nf3 {[%emt 0:00:00]} Nc6 {[%emt 0:00:00]} 3. Bc4 {[%emt 0:00:00]} Bc5 {[%emt 0:00:00]} 4. c3 {[%emt 0:00:00]} Nf6 {[%emt 0:00:00]} 5. d3 {[%emt 0:00:00]} d6 {[%emt 0:00:00]} 6. Bb3 {[%emt 0:00:00]} a6 {[%emt 0:00:00]} 7. Nbd2 {[%emt 0:00:00]} Ba7 {[%emt 0:00:00]} 8. h3 {[%emt 0:00:00]} O-O {[%emt 0:00:00]} 9. Nf1 {[%emt 0:00:00]} h6 {[%emt 0:00:00]} 10. g4 {[%emt 0:00:00]} d5 {[%emt 0:00:00]} 11. Qe2 {[%emt 0:00:00]} dxe4 {[%emt 0:01:01]} 12. dxe4 {[%emt 0:00:00]} Nd7 {[%emt 0:01:49]} 13. g5 {[%emt 0:00:00]} Nc5 {[%emt 0:00:49]} 14. gxh6 {[%emt 0:00:00]} Nd3+ {[%emt 0:02:34]} 15. Kd1 {[%emt 0:00:04]} Nf4+ {[%emt 0:10:51]} 16. Qd2 {[%emt 0:00:27] [#]} Qxd2+ $2 {[%emt 0:02:07]} ({Much less strong is} 16... gxh6 17. Kc2 $14) (16... Qf6 $1 $17 17. Rg1 Qxh6 18. Nxe5 Rd8 19. Bxf7+ Kh7) 17. Bxd2 {[%emt 0:03:26]} gxh6 {[%emt 0:04:31] [#]} 18. Bxf4 {[%emt 0:15:47]} ({Of course not} 18. Nxe5 $6 Nxe5 19. Bxf4 Nd3 $11) (18. Kc2 $1 $16) 18... exf4 {[%emt 0:00:21]} 19. Rh2 {[%emt 0:00:53]} Kh7 {[%emt 0:05:59]} 20. N1d2 {[%emt 0:05:13]} f5 {[%emt 0:02:05]} 21. Bc2 {[%emt 0:04:13]} (21. Nh4 $14 {was preferrable.}) 21... Be6 {[%emt 0:06:33]} 22. exf5 {[%emt 0:02:57]} Bxf5 {[%emt 0:01:12]} 23. Bxf5+ {[%emt 0:01:54]} Rxf5 {[%emt 0:00:06]} 24. Kc2 {[%emt 0:01:06]} Re8 {[%emt 0:01:40]} 25. Re1 {[%emt 0:08:48]} Rxe1 {[%emt 0:09:00]} 26. Nxe1 {[%emt 0:00:09]} Ne5 {[%emt 0:00:37]} 27. Ndf3 {[%emt 0:08:38]} Nxf3 {[%emt 0:01:33]} 28. Nxf3 {[%emt 0:00:13]} Rd5 {[%emt 0:00:24]} 29. Ne1 {[%emt 0:03:04]} h5 {[%emt 0:11:29]} 30. Nd3 {[%emt 0:06:06]} f3 {[%emt 0:01:37]} 31. h4 $11 {[%emt 0:02:28]} Rf5 {[%emt 0:02:00]} 32. Rh1 {[%emt 0:01:20]} Kg7 {[%emt 0:05:10]} 33. Re1 {[%emt 0:05:49]} Rf7 {[%emt 0:03:45]} 34. Re5 {[%emt 0:01:52]} Kg6 {[%emt 0:02:01]} 35. Kd2 {[%emt 0:05:53]} Rf6 {[%emt 0:02:13]} 36. Ke1 {[%emt 0:01:37]} b5 {[%emt 0:01:59]} 37. Rg5+ {[%emt 0:02:25]} Kh6 {[%emt 0:00:25]} 38. Kf1 {[%emt 0:00:27]} Rd6 {[%emt 0:01:08]} 39. Ne1 {[%emt 0:01:41]} Rd2 {[%emt 0:00:30]} 0-1